[Event "Titled Tuesday Blitz March 28 Late 2023"]
[White "Sarana, Alexey"]
[Black "Lamard, Guillaume"]
[WhiteFideId "24133795"]
[BlackFideId "600261"]
[WhiteElo "2714"]
[BlackElo "2413"]
[Result "1-0"]
[Round "06"]
[TimeControl "180+2"]
[Date "2023.03.28"]
[WhiteClock "0:00:55"]
[BlackClock "0:00:01"]

1. d4 {[%clk 0:03:00]}  Nf6 {[%clk 0:02:59]} 2. c4 {[%clk 0:03:00]}  e6 {[%clk 0:02:59]} 3. Nf3 {[%clk 0:02:59]}  d5 {[%clk 0:02:59]} 4. g3 {[%clk 0:03:00]}  Bb4+ {[%clk 0:02:58]} 5. Bd2 {[%clk 0:02:59]}  Be7 {[%clk 0:02:57]} 6. Bg2 {[%clk 0:03:00]}  O-O {[%clk 0:02:58]} 7. Qc2 {[%clk 0:03:00]}  c6 {[%clk 0:02:57]} 8. O-O {[%clk 0:02:59]}  Nbd7 {[%clk 0:02:44]} 9. b3 {[%clk 0:02:56]}  a5 {[%clk 0:02:43]} 10. Nc3 {[%clk 0:02:53]}  b6 {[%clk 0:02:27]} 11. e4 {[%clk 0:02:53]}  Ba6 {[%clk 0:02:23]} 12. Ne5 {[%clk 0:02:45]}  Rc8 {[%clk 0:02:15]} 13. Rfd1 {[%clk 0:02:45]}  Nxe5 {[%clk 0:01:30]} 14. dxe5 {[%clk 0:02:45]}  Nd7 {[%clk 0:01:30]} 15. exd5 {[%clk 0:02:45]}  cxd5 {[%clk 0:01:30]} 16. cxd5 {[%clk 0:02:45]}  exd5 {[%clk 0:01:23]} 17. Qf5 {[%clk 0:02:39]}  d4 {[%clk 0:01:14]} 18. Nd5 {[%clk 0:02:38]}  Nc5 {[%clk 0:00:56]} 19. Bf4 {[%clk 0:02:29]}  Ne6 {[%clk 0:00:52]} 20. Qe4 {[%clk 0:02:10]}  Rc5 {[%clk 0:00:47]} 21. Rd2 {[%clk 0:02:02]}  Kh8 {[%clk 0:00:41]} 22. Nxe7 {[%clk 0:01:59]}  Qxe7 {[%clk 0:00:41]} 23. h4 {[%clk 0:02:00]}  Rc7 {[%clk 0:00:36]} 24. Bg5 {[%clk 0:01:55]}  Qb4 {[%clk 0:00:32]} 25. Qg4 {[%clk 0:01:44]}  Bb7 {[%clk 0:00:27]} 26. Bf1 {[%clk 0:01:44]}  Qc5 {[%clk 0:00:23]} 27. Re1 {[%clk 0:01:28]}  Qd5 {[%clk 0:00:23]} 28. Qh3 {[%clk 0:01:28]}  h6 {[%clk 0:00:21]} 29. Bf4 {[%clk 0:01:17]}  Nxf4 {[%clk 0:00:20]} 30. gxf4 {[%clk 0:01:18]}  Rc3 {[%clk 0:00:21]} 31. Qh2 {[%clk 0:01:14]}  Rfc8 {[%clk 0:00:20]} 32. Bg2 {[%clk 0:01:13]}  Qxg2+ {[%clk 0:00:20]} 33. Qxg2 {[%clk 0:01:14]}  Bxg2 {[%clk 0:00:20]} 34. Kxg2 {[%clk 0:01:15]}  Rc2 {[%clk 0:00:18]} 35. Red1 {[%clk 0:01:15]}  Kh7 {[%clk 0:00:14]} 36. Kf3 {[%clk 0:01:14]}  Kg6 {[%clk 0:00:12]} 37. Ke4 {[%clk 0:01:13]}  Kh5 {[%clk 0:00:12]} 38. a4 {[%clk 0:01:10]}  Kxh4 {[%clk 0:00:11]} 39. Rh1+ {[%clk 0:01:04]}  Kg4 {[%clk 0:00:11]} 40. Rg1+ {[%clk 0:01:05]}  Kh5 {[%clk 0:00:09]} 41. Rxc2 {[%clk 0:00:55]}  Rxc2 {[%clk 0:00:10]} 42. Rxg7 {[%clk 0:00:55]}  Rc7 {[%clk 0:00:05]} 43. Kxd4 {[%clk 0:00:54]}  Kh4 {[%clk 0:00:02]} 44. f5 {[%clk 0:00:54]}  Rd7+ {[%clk 0:00:01]} 45. Ke3 {[%clk 0:00:54]}  Rc7 {[%clk 0:00:01]} 46. e6 {[%clk 0:00:54]}  Rc3+ {[%clk 0:00:01]} 47. Kd4 {[%clk 0:00:55]}  Rg3 {[%clk 0:00:01]} 48. fxg3+ {[%clk 0:00:55]} 1-0


[Site "https://www.chess.com"]

[Event "Titled Tuesday Blitz March 28 Late 2023"]
[White "Ibarra Jerez, Jose Carlos"]
[Black "Tilicheev, Viacheslav"]
[WhiteFideId "2226332"]
[BlackFideId "24114928"]
[WhiteElo "2638"]
[BlackElo "2415"]
[Result "0-1"]
[Round "06"]
[TimeControl "180+2"]
[Date "2023.03.28"]
[WhiteClock "0:00:02"]
[BlackClock "0:00:35"]

1. e4 {[%clk 0:02:58]}  c5 {[%clk 0:02:59]} 2. Nf3 {[%clk 0:02:58]}  Nc6 {[%clk 0:03:00]} 3. d4 {[%clk 0:02:58]}  cxd4 {[%clk 0:03:01]} 4. Nxd4 {[%clk 0:02:59]}  Nf6 {[%clk 0:03:01]} 5. Nc3 {[%clk 0:02:59]}  h5 {[%clk 0:03:02]} 6. Bg5 {[%clk 0:02:54]}  Qa5 {[%clk 0:03:01]} 7. Bxf6 {[%clk 0:02:50]}  gxf6 {[%clk 0:03:01]} 8. Nb3 {[%clk 0:02:48]}  Qe5 {[%clk 0:03:00]} 9. g3 {[%clk 0:02:44]}  e6 {[%clk 0:03:00]} 10. f4 {[%clk 0:02:42]}  Qd6 {[%clk 0:03:00]} 11. Qf3 {[%clk 0:02:33]}  a6 {[%clk 0:02:58]} 12. Rd1 {[%clk 0:02:29]}  Qc7 {[%clk 0:02:57]} 13. Bg2 {[%clk 0:02:24]}  h4 {[%clk 0:02:56]} 14. O-O {[%clk 0:02:22]}  hxg3 {[%clk 0:02:55]} 15. hxg3 {[%clk 0:02:22]}  Na5 {[%clk 0:02:44]} 16. Nd4 {[%clk 0:01:46]}  Bc5 {[%clk 0:02:26]} 17. e5 {[%clk 0:01:44]}  Qb6 {[%clk 0:02:00]} 18. Qf2 {[%clk 0:01:32]}  Nc6 {[%clk 0:01:51]} 19. Bxc6 {[%clk 0:00:54]}  Bxd4 {[%clk 0:01:32]} 20. Qxd4 {[%clk 0:00:43]}  Qxc6 {[%clk 0:01:32]} 21. Ne4 {[%clk 0:00:27]}  f5 {[%clk 0:01:32]} 22. Nf2 {[%clk 0:00:19]}  b5 {[%clk 0:01:30]} 23. Qd6 {[%clk 0:00:17]}  Bb7 {[%clk 0:01:14]} 24. Qxc6 {[%clk 0:00:18]}  Bxc6 {[%clk 0:01:15]} 25. Rd6 {[%clk 0:00:18]}  Ke7 {[%clk 0:01:11]} 26. Rfd1 {[%clk 0:00:17]}  Rag8 {[%clk 0:01:11]} 27. R1d3 {[%clk 0:00:17]}  b4 {[%clk 0:01:03]} 28. c3 {[%clk 0:00:15]}  bxc3 {[%clk 0:01:02]} 29. Rxc3 {[%clk 0:00:15]}  f6 {[%clk 0:00:46]} 30. Rd4 {[%clk 0:00:05]}  fxe5 {[%clk 0:00:44]} 31. fxe5 {[%clk 0:00:05]}  Rb8 {[%clk 0:00:37]} 32. b3 {[%clk 0:00:06]}  Rb5 {[%clk 0:00:37]} 33. Re3 {[%clk 0:00:05]}  Rc5 {[%clk 0:00:38]} 34. Nd3 {[%clk 0:00:04]}  Rh1+ {[%clk 0:00:35]} 35. Kf2 {[%clk 0:00:04]}  Rc2+ {[%clk 0:00:35]} 36. Re2 {[%clk 0:00:02]}  Rh2+ {[%clk 0:00:36]} 37. Ke3 {[%clk 0:00:02]}  Rcxe2+ {[%clk 0:00:35]} 0-1


[Site "https://www.chess.com"]

[Event "Titled Tuesday Blitz March 28 Late 2023"]
[White "Pakleza, Zbigniew"]
[Black "Koksal, Ege"]
[WhiteFideId "1119290"]
[BlackFideId "6317626"]
[WhiteElo "2410"]
[BlackElo "2226"]
[Result "1-0"]
[Round "06"]
[TimeControl "180+2"]
[Date "2023.03.28"]
[WhiteClock "0:00:08"]
[BlackClock "0:00:06"]

1. d4 {[%clk 0:03:00]}  d5 {[%clk 0:02:59]} 2. Bf4 {[%clk 0:03:00]}  c6 {[%clk 0:02:59]} 3. e3 {[%clk 0:03:00]}  Bf5 {[%clk 0:02:59]} 4. c4 {[%clk 0:03:01]}  e6 {[%clk 0:02:27]} 5. Nc3 {[%clk 0:03:00]}  Nd7 {[%clk 0:02:26]} 6. Qb3 {[%clk 0:03:00]}  Qb6 {[%clk 0:02:26]} 7. c5 {[%clk 0:03:00]}  Qxb3 {[%clk 0:02:27]} 8. axb3 {[%clk 0:03:01]}  a6 {[%clk 0:02:28]} 9. b4 {[%clk 0:03:02]}  Rc8 {[%clk 0:02:28]} 10. Nf3 {[%clk 0:03:01]}  Ngf6 {[%clk 0:02:26]} 11. h3 {[%clk 0:03:01]}  Ne4 {[%clk 0:02:26]} 12. Nxe4 {[%clk 0:03:00]}  Bxe4 {[%clk 0:02:27]} 13. Nd2 {[%clk 0:03:01]}  Be7 {[%clk 0:02:25]} 14. Nb3 {[%clk 0:02:55]}  f6 {[%clk 0:01:23]} 15. Na5 {[%clk 0:02:53]}  e5 {[%clk 0:01:24]} 16. Bh2 {[%clk 0:02:50]}  Rb8 {[%clk 0:01:25]} 17. Kd2 {[%clk 0:02:45]}  Bd8 {[%clk 0:01:21]} 18. f3 {[%clk 0:02:42]}  Bg6 {[%clk 0:01:21]} 19. Kc3 {[%clk 0:02:35]}  Bc7 {[%clk 0:01:20]} 20. Bxa6 {[%clk 0:01:46]}  Bxa5 {[%clk 0:01:12]} 21. Rxa5 {[%clk 0:01:35]}  bxa6 {[%clk 0:01:13]} 22. Rxa6 {[%clk 0:01:35]}  Rc8 {[%clk 0:01:13]} 23. Rha1 {[%clk 0:01:30]}  Ke7 {[%clk 0:01:10]} 24. Ra7 {[%clk 0:01:27]}  Ke6 {[%clk 0:01:11]} 25. b5 {[%clk 0:01:19]}  Rhd8 {[%clk 0:00:48]} 26. R1a6 {[%clk 0:00:51]}  Nb8 {[%clk 0:00:34]} 27. Rb6 {[%clk 0:00:52]}  Be8 {[%clk 0:00:19]} 28. bxc6 {[%clk 0:00:36]}  Rxc6 {[%clk 0:00:14]} 29. Rbb7 {[%clk 0:00:37]}  Rd7 {[%clk 0:00:13]} 30. Rxb8 {[%clk 0:00:37]}  Rxa7 {[%clk 0:00:13]} 31. Rxe8+ {[%clk 0:00:38]}  Kf7 {[%clk 0:00:12]} 32. Rd8 {[%clk 0:00:35]}  exd4+ {[%clk 0:00:07]} 33. exd4 {[%clk 0:00:36]}  Re7 {[%clk 0:00:05]} 34. Rxd5 {[%clk 0:00:25]}  Re2 {[%clk 0:00:05]} 35. Rd7+ {[%clk 0:00:21]}  Kg6 {[%clk 0:00:04]} 36. Bd6 {[%clk 0:00:16]}  Rxg2 {[%clk 0:00:04]} 37. d5 {[%clk 0:00:16]}  Rc8 {[%clk 0:00:04]} 38. b4 {[%clk 0:00:16]}  Rf2 {[%clk 0:00:05]} 39. b5 {[%clk 0:00:15]}  Rxf3+ {[%clk 0:00:06]} 40. Kc4 {[%clk 0:00:15]}  Kf5 {[%clk 0:00:06]} 41. Rxg7 {[%clk 0:00:11]}  Re8 {[%clk 0:00:06]} 42. Re7 {[%clk 0:00:07]}  Ra8 {[%clk 0:00:05]} 43. b6 {[%clk 0:00:08]}  Rfa3 {[%clk 0:00:04]} 44. Kb5 {[%clk 0:00:08]}  R8a5+ {[%clk 0:00:04]} 45. Kc6 {[%clk 0:00:08]}  Rc3 {[%clk 0:00:04]} 46. b7 {[%clk 0:00:08]}  Rb3 {[%clk 0:00:04]} 47. b8=Q {[%clk 0:00:07]}  Rxb8 {[%clk 0:00:04]} 48. Bxb8 {[%clk 0:00:08]}  Ra4 {[%clk 0:00:05]} 49. Rxh7 {[%clk 0:00:08]}  Rb4 {[%clk 0:00:05]} 50. Bc7 {[%clk 0:00:07]}  Ke4 {[%clk 0:00:05]} 51. d6 {[%clk 0:00:07]}  Rc4 {[%clk 0:00:06]} 52. d7 {[%clk 0:00:08]} 1-0


[Site "https://www.chess.com"]

[Event "Titled Tuesday Blitz March 28 Late 2023"]
[White "Freitag, Manfred"]
[Black "Ashraf, Artin"]
[WhiteFideId "1602004"]
[BlackFideId "22514805"]
[WhiteElo "2275"]
[BlackElo "2188"]
[Result "0-1"]
[Round "06"]
[TimeControl "180+2"]
[Date "2023.03.28"]
[WhiteClock "0:01:31"]
[BlackClock "0:00:42"]

1. e4 {[%clk 0:03:00]}  c5 {[%clk 0:02:58]} 2. Nf3 {[%clk 0:03:00]}  d6 {[%clk 0:02:58]} 3. d4 {[%clk 0:03:00]}  cxd4 {[%clk 0:02:59]} 4. Nxd4 {[%clk 0:03:01]}  Nf6 {[%clk 0:02:59]} 5. Nc3 {[%clk 0:03:01]}  a6 {[%clk 0:03:00]} 6. Bg5 {[%clk 0:03:01]}  e6 {[%clk 0:03:00]} 7. f4 {[%clk 0:03:00]}  h6 {[%clk 0:03:01]} 8. Bh4 {[%clk 0:03:00]}  Qb6 {[%clk 0:03:01]} 9. a3 {[%clk 0:03:01]}  Nc6 {[%clk 0:03:01]} 10. Bf2 {[%clk 0:03:01]}  Qc7 {[%clk 0:03:01]} 11. Qf3 {[%clk 0:03:00]}  Be7 {[%clk 0:02:58]} 12. h3 {[%clk 0:02:57]}  Bd7 {[%clk 0:02:54]} 13. O-O-O {[%clk 0:02:57]}  b5 {[%clk 0:02:53]} 14. Nxc6 {[%clk 0:02:56]}  Bxc6 {[%clk 0:02:52]} 15. Bd3 {[%clk 0:02:56]}  Rc8 {[%clk 0:02:50]} 16. Kb1 {[%clk 0:02:55]}  O-O {[%clk 0:02:44]} 17. g4 {[%clk 0:02:54]}  a5 {[%clk 0:02:27]} 18. g5 {[%clk 0:02:29]}  hxg5 {[%clk 0:02:23]} 19. fxg5 {[%clk 0:02:29]}  Nd7 {[%clk 0:02:19]} 20. h4 {[%clk 0:02:19]}  b4 {[%clk 0:02:14]} 21. axb4 {[%clk 0:02:20]}  axb4 {[%clk 0:02:14]} 22. Ne2 {[%clk 0:02:20]}  Ne5 {[%clk 0:02:14]} 23. Qg3 {[%clk 0:02:20]}  b3 {[%clk 0:02:06]} 24. Nc3 {[%clk 0:02:17]}  bxc2+ {[%clk 0:01:57]} 25. Bxc2 {[%clk 0:02:17]}  Qb7 {[%clk 0:01:55]} 26. Rd4 {[%clk 0:01:58]}  Ra8 {[%clk 0:01:49]} 27. h5 {[%clk 0:01:50]}  Rfb8 {[%clk 0:01:46]} 28. Nd1 {[%clk 0:01:48]}  Qa6 {[%clk 0:01:40]} 29. Kc1 {[%clk 0:01:48]}  Nc4 {[%clk 0:01:38]} 30. Bb3 {[%clk 0:01:37]}  Rxb3 {[%clk 0:01:28]} 31. Qxb3 {[%clk 0:01:36]}  Qa1+ {[%clk 0:01:27]} 32. Kc2 {[%clk 0:01:36]}  Ba4 {[%clk 0:01:27]} 33. Rxc4 {[%clk 0:01:36]}  Bxb3+ {[%clk 0:01:23]} 34. Kxb3 {[%clk 0:01:37]}  Bxg5 {[%clk 0:01:16]} 35. Re1 {[%clk 0:01:36]}  Qa2+ {[%clk 0:01:10]} 36. Kc3 {[%clk 0:01:34]}  Bd2+ {[%clk 0:01:07]} 37. Kxd2 {[%clk 0:01:35]}  Qxc4 {[%clk 0:01:06]} 38. Nc3 {[%clk 0:01:35]}  Qb4 {[%clk 0:00:50]} 39. Rb1 {[%clk 0:01:34]}  d5 {[%clk 0:00:47]} 40. exd5 {[%clk 0:01:33]}  exd5 {[%clk 0:00:48]} 41. Kc2 {[%clk 0:01:31]}  d4 {[%clk 0:00:47]} 42. Ne4 {[%clk 0:01:31]}  d3+ {[%clk 0:00:41]} 43. Kxd3 {[%clk 0:01:31]}  Rd8+ {[%clk 0:00:42]} 44. Ke3 {[%clk 0:01:31]}  Re8 {[%clk 0:00:42]} 0-1


[Site "https://www.chess.com"]

[Event "Titled Tuesday Blitz March 28 Late 2023"]
[White "Horvath, Dominik"]
[Black "Makarian, Rudik"]
[WhiteFideId "1642561"]
[BlackFideId "44105681"]
[WhiteElo "2407"]
[BlackElo "2436"]
[Result "1/2-1/2"]
[Round "06"]
[TimeControl "180+2"]
[Date "2023.03.28"]
[WhiteClock "0:00:07"]
[BlackClock "0:00:06"]

1. e4 {[%clk 0:03:00]}  c5 {[%clk 0:02:59]} 2. c3 {[%clk 0:03:00]}  d5 {[%clk 0:02:59]} 3. exd5 {[%clk 0:03:00]}  Nf6 {[%clk 0:02:59]} 4. Bb5+ {[%clk 0:02:56]}  Nbd7 {[%clk 0:02:58]} 5. d4 {[%clk 0:02:54]}  a6 {[%clk 0:02:57]} 6. Bxd7+ {[%clk 0:02:53]}  Qxd7 {[%clk 0:02:58]} 7. dxc5 {[%clk 0:02:51]}  Qxd5 {[%clk 0:02:58]} 8. Qxd5 {[%clk 0:02:50]}  Nxd5 {[%clk 0:02:59]} 9. Nf3 {[%clk 0:02:48]}  e6 {[%clk 0:02:55]} 10. b4 {[%clk 0:02:48]}  a5 {[%clk 0:02:56]} 11. Bd2 {[%clk 0:02:42]}  Be7 {[%clk 0:02:47]} 12. a4 {[%clk 0:02:40]}  b6 {[%clk 0:02:36]} 13. cxb6 {[%clk 0:02:25]}  Nxb6 {[%clk 0:02:37]} 14. b5 {[%clk 0:02:24]}  Bb7 {[%clk 0:02:36]} 15. O-O {[%clk 0:02:23]}  Nc4 {[%clk 0:02:29]} 16. Bf4 {[%clk 0:02:15]}  Bxf3 {[%clk 0:02:25]} 17. gxf3 {[%clk 0:02:15]}  O-O-O {[%clk 0:02:25]} 18. Ra2 {[%clk 0:02:12]}  Rd3 {[%clk 0:02:19]} 19. Nd2 {[%clk 0:02:03]}  Rxc3 {[%clk 0:02:11]} 20. Nxc4 {[%clk 0:02:02]}  Rxc4 {[%clk 0:02:12]} 21. Bd2 {[%clk 0:02:01]}  Kb7 {[%clk 0:02:02]} 22. Kg2 {[%clk 0:01:44]}  Bb4 {[%clk 0:01:57]} 23. Be3 {[%clk 0:01:43]}  Rd8 {[%clk 0:01:53]} 24. Rb1 {[%clk 0:01:31]}  Rd5 {[%clk 0:01:50]} 25. f4 {[%clk 0:01:31]}  Bd6 {[%clk 0:01:43]} 26. Bd2 {[%clk 0:01:30]}  Kb6 {[%clk 0:01:26]} 27. Be3+ {[%clk 0:01:23]}  Bc5 {[%clk 0:01:26]} 28. Rb3 {[%clk 0:01:16]}  h5 {[%clk 0:01:23]} 29. h4 {[%clk 0:01:15]}  g6 {[%clk 0:01:23]} 30. Kf3 {[%clk 0:01:13]}  Rd1 {[%clk 0:01:17]} 31. Ke2 {[%clk 0:01:11]}  Rd5 {[%clk 0:01:12]} 32. Kf3 {[%clk 0:01:11]}  e5 {[%clk 0:01:00]} 33. fxe5 {[%clk 0:01:10]}  Rxe5 {[%clk 0:01:01]} 34. Rd2 {[%clk 0:01:02]}  Bxe3 {[%clk 0:00:55]} 35. fxe3 {[%clk 0:01:02]}  Rf5+ {[%clk 0:00:34]} 36. Ke2 {[%clk 0:00:53]}  Rxa4 {[%clk 0:00:33]} 37. Rd6+ {[%clk 0:00:53]}  Kb7 {[%clk 0:00:25]} 38. Rd7+ {[%clk 0:00:51]}  Kc8 {[%clk 0:00:20]} 39. Ra7 {[%clk 0:00:50]}  Rb4 {[%clk 0:00:18]} 40. Rc3+ {[%clk 0:00:21]}  Kb8 {[%clk 0:00:18]} 41. Rxa5 {[%clk 0:00:21]}  Rbxb5 {[%clk 0:00:12]} 42. Rxb5+ {[%clk 0:00:14]}  Rxb5 {[%clk 0:00:13]} 43. Kf3 {[%clk 0:00:15]}  Kb7 {[%clk 0:00:10]} 44. e4 {[%clk 0:00:13]}  Rb6 {[%clk 0:00:09]} 45. Kf4 {[%clk 0:00:13]}  Rc6 {[%clk 0:00:10]} 46. Rxc6 {[%clk 0:00:09]}  Kxc6 {[%clk 0:00:11]} 47. Ke5 {[%clk 0:00:07]}  Kd7 {[%clk 0:00:09]} 48. Kf6 {[%clk 0:00:07]}  Ke8 {[%clk 0:00:09]} 49. e5 {[%clk 0:00:08]}  Kf8 {[%clk 0:00:09]} 50. e6 {[%clk 0:00:05]}  fxe6 {[%clk 0:00:08]} 51. Kxg6 {[%clk 0:00:06]}  Ke7 {[%clk 0:00:05]} 52. Kxh5 {[%clk 0:00:06]}  Kf6 {[%clk 0:00:05]} 53. Kg4 {[%clk 0:00:07]}  Kg6 {[%clk 0:00:05]} 54. Kf4 {[%clk 0:00:06]}  Kh5 {[%clk 0:00:05]} 55. Ke5 {[%clk 0:00:07]}  Kxh4 {[%clk 0:00:06]} 56. Kxe6 {[%clk 0:00:07]} 1/2-1/2


[Site "https://www.chess.com"]

[Event "Titled Tuesday Blitz March 28 Late 2023"]
[White "Baskakov, Egor"]
[Black "Koellner, Ruben Gideon"]
[WhiteFideId "24197866"]
[BlackFideId "12993093"]
[WhiteElo "2212"]
[BlackElo "2303"]
[Result "1/2-1/2"]
[Round "06"]
[TimeControl "180+2"]
[Date "2023.03.28"]
[WhiteClock "0:00:05"]
[BlackClock "0:00:05"]

1. e4 {[%clk 0:02:56]}  d6 {[%clk 0:03:00]} 2. g3 {[%clk 0:02:55]}  Nf6 {[%clk 0:02:59]} 3. Bg2 {[%clk 0:02:55]}  e5 {[%clk 0:03:00]} 4. Ne2 {[%clk 0:02:56]}  Be7 {[%clk 0:03:01]} 5. h3 {[%clk 0:02:56]}  O-O {[%clk 0:03:02]} 6. O-O {[%clk 0:02:56]}  c6 {[%clk 0:03:00]} 7. d4 {[%clk 0:02:56]}  Nbd7 {[%clk 0:03:00]} 8. c4 {[%clk 0:02:56]}  a6 {[%clk 0:03:00]} 9. Nbc3 {[%clk 0:02:57]}  b5 {[%clk 0:03:00]} 10. b3 {[%clk 0:02:53]}  Bb7 {[%clk 0:02:57]} 11. Be3 {[%clk 0:02:51]}  b4 {[%clk 0:02:52]} 12. Nb1 {[%clk 0:02:39]}  exd4 {[%clk 0:02:51]} 13. Qxd4 {[%clk 0:02:38]}  c5 {[%clk 0:02:50]} 14. Qd3 {[%clk 0:02:38]}  Re8 {[%clk 0:02:46]} 15. Nd2 {[%clk 0:02:38]}  Bf8 {[%clk 0:02:46]} 16. Rad1 {[%clk 0:02:36]}  Qc7 {[%clk 0:02:40]} 17. Nf4 {[%clk 0:02:32]}  a5 {[%clk 0:02:35]} 18. Rfe1 {[%clk 0:02:30]}  a4 {[%clk 0:02:35]} 19. Nd5 {[%clk 0:02:29]}  Bxd5 {[%clk 0:02:34]} 20. exd5 {[%clk 0:02:28]}  axb3 {[%clk 0:02:35]} 21. axb3 {[%clk 0:02:29]}  Ra2 {[%clk 0:02:26]} 22. Bf4 {[%clk 0:02:26]}  Rxe1+ {[%clk 0:02:22]} 23. Rxe1 {[%clk 0:02:27]}  Qa7 {[%clk 0:02:16]} 24. Ne4 {[%clk 0:02:10]}  Ra1 {[%clk 0:02:03]} 25. Rxa1 {[%clk 0:02:06]}  Qxa1+ {[%clk 0:02:04]} 26. Kh2 {[%clk 0:02:06]}  Nxe4 {[%clk 0:02:04]} 27. Qxe4 {[%clk 0:02:07]}  Nf6 {[%clk 0:02:04]} 28. Qf5 {[%clk 0:02:03]}  Qa6 {[%clk 0:01:54]} 29. Bg5 {[%clk 0:01:32]}  Be7 {[%clk 0:01:44]} 30. Be4 {[%clk 0:01:20]}  h6 {[%clk 0:01:30]} 31. Be3 {[%clk 0:01:07]}  g6 {[%clk 0:01:03]} 32. Qf3 {[%clk 0:01:06]}  Kg7 {[%clk 0:00:49]} 33. Bc2 {[%clk 0:01:00]}  Qa2 {[%clk 0:00:46]} 34. Qd1 {[%clk 0:01:00]}  Nd7 {[%clk 0:00:42]} 35. h4 {[%clk 0:00:56]}  h5 {[%clk 0:00:34]} 36. Kg2 {[%clk 0:00:53]}  Bf6 {[%clk 0:00:34]} 37. Bd3 {[%clk 0:00:30]}  Ne5 {[%clk 0:00:32]} 38. Be2 {[%clk 0:00:31]}  Nd7 {[%clk 0:00:23]} 39. g4 {[%clk 0:00:28]}  hxg4 {[%clk 0:00:20]} 40. Bxg4 {[%clk 0:00:29]}  Ne5 {[%clk 0:00:20]} 41. h5 {[%clk 0:00:29]}  Nxg4 {[%clk 0:00:18]} 42. Qxg4 {[%clk 0:00:30]}  Qxb3 {[%clk 0:00:18]} 43. h6+ {[%clk 0:00:26]}  Kh7 {[%clk 0:00:04]} 44. Qd7 {[%clk 0:00:26]}  Qc3 {[%clk 0:00:01]} 45. Qxf7+ {[%clk 0:00:26]}  Kh8 {[%clk 0:00:02]} 46. Qe8+ {[%clk 0:00:21]}  Kh7 {[%clk 0:00:01]} 47. Qf7+ {[%clk 0:00:22]}  Bg7 {[%clk 0:00:02]} 48. hxg7 {[%clk 0:00:18]}  Qxg7 {[%clk 0:00:03]} 49. Qe6 {[%clk 0:00:18]}  Qf8 {[%clk 0:00:01]} 50. Qd7+ {[%clk 0:00:18]}  Kg8 {[%clk 0:00:01]} 51. Qe6+ {[%clk 0:00:12]}  Kh7 {[%clk 0:00:02]} 52. Qd7+ {[%clk 0:00:12]}  Kg8 {[%clk 0:00:02]} 53. Qc7 {[%clk 0:00:13]}  Qf5 {[%clk 0:00:01]} 54. Qxd6 {[%clk 0:00:12]}  Qg4+ {[%clk 0:00:02]} 55. Qg3 {[%clk 0:00:12]}  Qe4+ {[%clk 0:00:02]} 56. Qf3 {[%clk 0:00:12]}  Qxc4 {[%clk 0:00:03]} 57. d6 {[%clk 0:00:12]}  Qe6 {[%clk 0:00:03]} 58. Qa8+ {[%clk 0:00:11]}  Kf7 {[%clk 0:00:03]} 59. Qb7+ {[%clk 0:00:12]}  Kf6 {[%clk 0:00:03]} 60. d7 {[%clk 0:00:11]}  Qg4+ {[%clk 0:00:03]} 61. Kh2 {[%clk 0:00:11]}  Qh4+ {[%clk 0:00:04]} 62. Kg1 {[%clk 0:00:10]}  Qg4+ {[%clk 0:00:04]} 63. Kf1 {[%clk 0:00:09]}  Qd1+ {[%clk 0:00:04]} 64. Kg2 {[%clk 0:00:09]}  Qg4+ {[%clk 0:00:05]} 65. Kh1 {[%clk 0:00:09]}  Qh4+ {[%clk 0:00:05]} 66. Kg1 {[%clk 0:00:09]}  Qg4+ {[%clk 0:00:05]} 67. Qg2 {[%clk 0:00:08]}  Qxd7 {[%clk 0:00:06]} 68. Bxc5 {[%clk 0:00:08]}  Qd1+ {[%clk 0:00:04]} 69. Qf1 {[%clk 0:00:08]}  Qg4+ {[%clk 0:00:04]} 70. Qg2 {[%clk 0:00:08]}  Qd1+ {[%clk 0:00:04]} 71. Qf1 {[%clk 0:00:07]}  Qg4+ {[%clk 0:00:05]} 72. Qg2 {[%clk 0:00:05]}  Qd1+ {[%clk 0:00:05]} 1/2-1/2


[Site "https://www.chess.com"]